[Event "Titled Tuesday Blitz October 25 Early 2022"]
[White "Kollars, Dmitrij"]
[Black "Hasangatin, Ramil"]
[WhiteFideId "12909572"]
[BlackFideId "4122160"]
[WhiteElo "2584"]
[BlackElo "2358"]
[Result "0-1"]
[Round "08"]
[TimeControl "180+1"]
[Date "2022.10.25"]
[WhiteClock "0:00:04"]
[BlackClock "0:00:07"]

1. Nf3 {[%clk 0:02:25]}  d6 {[%clk 0:02:54]} 2. d4 {[%clk 0:02:25]}  Bg4 {[%clk 0:02:53]} 3. Nbd2 {[%clk 0:02:24]}  Nf6 {[%clk 0:02:53]} 4. h3 {[%clk 0:02:24]}  Bh5 {[%clk 0:02:52]} 5. g4 {[%clk 0:02:23]}  Bg6 {[%clk 0:02:52]} 6. Nh4 {[%clk 0:02:23]}  e5 {[%clk 0:02:50]} 7. Bg2 {[%clk 0:02:20]}  c6 {[%clk 0:02:50]} 8. Nxg6 {[%clk 0:02:17]}  hxg6 {[%clk 0:02:49]} 9. c3 {[%clk 0:02:17]}  Nbd7 {[%clk 0:02:47]} 10. Nc4 {[%clk 0:02:07]}  Qc7 {[%clk 0:02:41]} 11. a4 {[%clk 0:02:07]}  d5 {[%clk 0:02:37]} 12. Nxe5 {[%clk 0:02:07]}  Nxe5 {[%clk 0:02:37]} 13. dxe5 {[%clk 0:02:07]}  Qxe5 {[%clk 0:02:38]} 14. Be3 {[%clk 0:02:08]}  Bd6 {[%clk 0:02:35]} 15. Qb3 {[%clk 0:02:07]}  O-O {[%clk 0:02:22]} 16. Bd4 {[%clk 0:02:02]}  Qe7 {[%clk 0:02:19]} 17. e3 {[%clk 0:01:59]}  Ne4 {[%clk 0:02:11]} 18. c4 {[%clk 0:01:46]}  c5 {[%clk 0:02:11]} 19. Bc3 {[%clk 0:01:45]}  d4 {[%clk 0:02:11]} 20. Ba5 {[%clk 0:01:31]}  b6 {[%clk 0:02:06]} 21. Qd3 {[%clk 0:01:15]}  Rfe8 {[%clk 0:01:37]} 22. Qxe4 {[%clk 0:01:15]}  Qxe4 {[%clk 0:01:36]} 23. Bxe4 {[%clk 0:01:16]}  Rxe4 {[%clk 0:01:36]} 24. Bd2 {[%clk 0:01:17]}  dxe3 {[%clk 0:01:34]} 25. Bxe3 {[%clk 0:01:18]}  Bf4 {[%clk 0:01:34]} 26. Ke2 {[%clk 0:01:11]}  Bxe3 {[%clk 0:01:32]} 27. fxe3 {[%clk 0:01:12]}  Rae8 {[%clk 0:01:25]} 28. Ra3 {[%clk 0:01:02]}  Rxc4 {[%clk 0:01:25]} 29. Kf3 {[%clk 0:00:59]}  Rb4 {[%clk 0:01:09]} 30. Rh2 {[%clk 0:00:57]}  Rd8 {[%clk 0:01:08]} 31. Rc2 {[%clk 0:00:53]}  a5 {[%clk 0:01:07]} 32. Ke2 {[%clk 0:00:50]}  g5 {[%clk 0:01:06]} 33. b3 {[%clk 0:00:49]}  f6 {[%clk 0:01:02]} 34. Rc3 {[%clk 0:00:49]}  Re4 {[%clk 0:00:57]} 35. Ra1 {[%clk 0:00:47]}  Kf7 {[%clk 0:00:57]} 36. Rc4 {[%clk 0:00:45]}  Ree8 {[%clk 0:00:51]} 37. Rh1 {[%clk 0:00:40]}  Rh8 {[%clk 0:00:45]} 38. Re4 {[%clk 0:00:39]}  Rh4 {[%clk 0:00:44]} 39. Rc4 {[%clk 0:00:22]}  Rdh8 {[%clk 0:00:35]} 40. Rd1 {[%clk 0:00:22]}  Re8 {[%clk 0:00:35]} 41. Rh1 {[%clk 0:00:06]}  Re6 {[%clk 0:00:35]} 42. Rc3 {[%clk 0:00:05]}  Ke7 {[%clk 0:00:35]} 43. Kf3 {[%clk 0:00:04]}  Kd6 {[%clk 0:00:33]} 44. Rd3+ {[%clk 0:00:04]}  Kc7 {[%clk 0:00:32]} 45. Kg3 {[%clk 0:00:04]}  Rd6 {[%clk 0:00:32]} 46. Rhd1 {[%clk 0:00:05]}  Rxd3 {[%clk 0:00:31]} 47. Rxd3 {[%clk 0:00:06]}  Rh8 {[%clk 0:00:31]} 48. e4 {[%clk 0:00:05]}  Rd8 {[%clk 0:00:28]} 49. Re3 {[%clk 0:00:05]}  Kd6 {[%clk 0:00:26]} 50. Rd3+ {[%clk 0:00:05]}  Ke7 {[%clk 0:00:26]} 51. Re3 {[%clk 0:00:06]}  Ke6 {[%clk 0:00:23]} 52. h4 {[%clk 0:00:06]}  gxh4+ {[%clk 0:00:18]} 53. Kxh4 {[%clk 0:00:07]}  Rh8+ {[%clk 0:00:18]} 54. Kg3 {[%clk 0:00:08]}  Ke5 {[%clk 0:00:19]} 55. Rd3 {[%clk 0:00:08]}  g5 {[%clk 0:00:15]} 56. Rd5+ {[%clk 0:00:07]}  Ke6 {[%clk 0:00:14]} 57. Rd1 {[%clk 0:00:07]}  Rb8 {[%clk 0:00:11]} 58. Rd5 {[%clk 0:00:06]}  Rh8 {[%clk 0:00:10]} 59. Rd1 {[%clk 0:00:06]}  Ke5 {[%clk 0:00:06]} 60. Rd5+ {[%clk 0:00:06]}  Kxe4 {[%clk 0:00:07]} 61. Rd6 {[%clk 0:00:07]}  Rb8 {[%clk 0:00:06]} 62. Rxf6 {[%clk 0:00:06]}  b5 {[%clk 0:00:07]} 63. Re6+ {[%clk 0:00:04]}  Kd4 {[%clk 0:00:05]} 64. Rg6 {[%clk 0:00:01]}  bxa4 {[%clk 0:00:05]} 65. bxa4 {[%clk 0:00:02]}  c4 {[%clk 0:00:06]} 66. Rxg5 {[%clk 0:00:02]}  c3 {[%clk 0:00:06]} 67. Rg7 {[%clk 0:00:03]}  Rc8 {[%clk 0:00:06]} 68. Rd7+ {[%clk 0:00:03]}  Kc4 {[%clk 0:00:06]} 69. Rd1 {[%clk 0:00:02]}  c2 {[%clk 0:00:06]} 70. Rc1 {[%clk 0:00:03]}  Kb3 {[%clk 0:00:07]} 71. g5 {[%clk 0:00:04]}  Kb2 {[%clk 0:00:07]} 0-1


[Site "https://www.chess.com"]

[Event "Titled Tuesday Blitz October 25 Early 2022"]
[White "Krysa, Leandro"]
[Black "Svane, Frederik"]
[WhiteFideId "116807"]
[BlackFideId "12923044"]
[WhiteElo "2486"]
[BlackElo "2466"]
[Result "0-1"]
[Round "08"]
[TimeControl "180+1"]
[Date "2022.10.25"]
[WhiteClock "0:00:04"]
[BlackClock "0:00:03"]

1. e4 {[%clk 0:03:00]}  c5 {[%clk 0:02:58]} 2. Nf3 {[%clk 0:03:00]}  d6 {[%clk 0:02:59]} 3. d4 {[%clk 0:03:01]}  cxd4 {[%clk 0:02:59]} 4. Nxd4 {[%clk 0:03:01]}  Nf6 {[%clk 0:03:00]} 5. Nc3 {[%clk 0:03:02]}  a6 {[%clk 0:03:01]} 6. Rg1 {[%clk 0:03:02]}  h5 {[%clk 0:03:00]} 7. Bg5 {[%clk 0:02:57]}  b5 {[%clk 0:03:00]} 8. Bd3 {[%clk 0:02:43]}  Bb7 {[%clk 0:02:59]} 9. Qe2 {[%clk 0:02:40]}  Nbd7 {[%clk 0:02:58]} 10. O-O-O {[%clk 0:02:34]}  Rc8 {[%clk 0:02:58]} 11. Ne6 {[%clk 0:01:57]}  Qa5 {[%clk 0:02:38]} 12. Nxf8 {[%clk 0:01:53]}  Kxf8 {[%clk 0:02:39]} 13. Bxf6 {[%clk 0:01:45]}  Nxf6 {[%clk 0:02:38]} 14. e5 {[%clk 0:01:43]}  dxe5 {[%clk 0:02:32]} 15. Qxe5 {[%clk 0:01:43]}  Qc7 {[%clk 0:02:25]} 16. Qg5 {[%clk 0:01:08]}  h4 {[%clk 0:02:10]} 17. Rge1 {[%clk 0:01:04]}  Rh5 {[%clk 0:02:10]} 18. Qe3 {[%clk 0:00:59]}  Rc5 {[%clk 0:02:06]} 19. a3 {[%clk 0:00:54]}  a5 {[%clk 0:02:00]} 20. Qd4 {[%clk 0:00:31]}  g5 {[%clk 0:01:41]} 21. Kb1 {[%clk 0:00:28]}  b4 {[%clk 0:00:41]} 22. axb4 {[%clk 0:00:25]}  axb4 {[%clk 0:00:42]} 23. Qxb4 {[%clk 0:00:25]}  Bxg2 {[%clk 0:00:40]} 24. Nb5 {[%clk 0:00:13]}  Qb6 {[%clk 0:00:33]} 25. c4 {[%clk 0:00:13]}  Bc6 {[%clk 0:00:20]} 26. Qb3 {[%clk 0:00:08]}  Bxb5 {[%clk 0:00:20]} 27. cxb5 {[%clk 0:00:08]}  Ng4 {[%clk 0:00:16]} 28. Rd2 {[%clk 0:00:07]}  Ne5 {[%clk 0:00:14]} 29. Bf1 {[%clk 0:00:07]}  Qf6 {[%clk 0:00:10]} 30. Red1 {[%clk 0:00:07]}  Kg7 {[%clk 0:00:08]} 31. Bd3 {[%clk 0:00:06]}  Rb8 {[%clk 0:00:07]} 32. Bf1 {[%clk 0:00:06]}  Nf3 {[%clk 0:00:07]} 33. Rd8 {[%clk 0:00:05]}  Rxd8 {[%clk 0:00:04]} 34. Rxd8 {[%clk 0:00:06]}  Qe5 {[%clk 0:00:02]} 35. Qe3 {[%clk 0:00:05]}  Qxe3 {[%clk 0:00:03]} 36. fxe3 {[%clk 0:00:06]}  Nxh2 {[%clk 0:00:03]} 37. Bg2 {[%clk 0:00:06]}  Rxb5 {[%clk 0:00:04]} 38. Rd2 {[%clk 0:00:05]}  g4 {[%clk 0:00:03]} 39. Be4 {[%clk 0:00:04]}  g3 {[%clk 0:00:02]} 40. Bg2 {[%clk 0:00:04]}  Ng4 {[%clk 0:00:03]} 41. e4 {[%clk 0:00:05]}  Nf2 {[%clk 0:00:03]} 42. Bf3 {[%clk 0:00:04]}  h3 {[%clk 0:00:03]} 43. Kc2 {[%clk 0:00:04]}  g2 {[%clk 0:00:03]} 0-1


[Site "https://www.chess.com"]

[Event "Titled Tuesday Blitz October 25 Early 2022"]
[White "Lamaze, Simon"]
[Black "Faizrakhmanov, Ramil"]
[WhiteFideId "36069264"]
[BlackFideId "24103209"]
[WhiteElo "2272"]
[BlackElo "2421"]
[Result "0-1"]
[Round "08"]
[TimeControl "180+1"]
[Date "2022.10.25"]
[WhiteClock "0:00:11"]
[BlackClock "0:01:01"]

1. d4 {[%clk 0:02:57]}  Nf6 {[%clk 0:02:59]} 2. c4 {[%clk 0:02:54]}  e6 {[%clk 0:03:00]} 3. g3 {[%clk 0:02:52]}  d5 {[%clk 0:03:00]} 4. Nf3 {[%clk 0:02:52]}  dxc4 {[%clk 0:03:00]} 5. Bg2 {[%clk 0:02:52]}  Bb4+ {[%clk 0:03:01]} 6. Bd2 {[%clk 0:02:51]}  a5 {[%clk 0:03:01]} 7. Qc2 {[%clk 0:02:49]}  c5 {[%clk 0:03:01]} 8. dxc5 {[%clk 0:02:46]}  Bxc5 {[%clk 0:03:01]} 9. Qxc4 {[%clk 0:02:44]}  Nbd7 {[%clk 0:03:02]} 10. O-O {[%clk 0:02:43]}  b6 {[%clk 0:03:01]} 11. Nc3 {[%clk 0:02:42]}  Ba6 {[%clk 0:02:59]} 12. Qa4 {[%clk 0:02:39]}  O-O {[%clk 0:02:57]} 13. Rfd1 {[%clk 0:02:38]}  Rc8 {[%clk 0:02:49]} 14. Bg5 {[%clk 0:02:32]}  Qe7 {[%clk 0:02:46]} 15. Ne4 {[%clk 0:02:24]}  Rfd8 {[%clk 0:02:36]} 16. Rxd7 {[%clk 0:00:48]}  Qxd7 {[%clk 0:02:32]} 17. Qxd7 {[%clk 0:00:47]}  Nxd7 {[%clk 0:02:22]} 18. Bxd8 {[%clk 0:00:47]}  Rxd8 {[%clk 0:02:23]} 19. e3 {[%clk 0:00:47]}  Be7 {[%clk 0:02:20]} 20. Nd4 {[%clk 0:00:47]}  Rc8 {[%clk 0:02:08]} 21. Nc3 {[%clk 0:00:44]}  Ne5 {[%clk 0:02:05]} 22. Ndb5 {[%clk 0:00:40]}  Bxb5 {[%clk 0:02:00]} 23. Nxb5 {[%clk 0:00:39]}  Rc2 {[%clk 0:02:01]} 24. b3 {[%clk 0:00:20]}  Ng4 {[%clk 0:01:58]} 25. Rf1 {[%clk 0:00:17]}  Rxa2 {[%clk 0:01:56]} 26. h3 {[%clk 0:00:14]}  Ne5 {[%clk 0:01:51]} 27. Rc1 {[%clk 0:00:14]}  Bc5 {[%clk 0:01:50]} 28. Rd1 {[%clk 0:00:15]}  g5 {[%clk 0:01:49]} 29. Rd8+ {[%clk 0:00:14]}  Kg7 {[%clk 0:01:49]} 30. Be4 {[%clk 0:00:15]}  Rb2 {[%clk 0:01:46]} 31. Nc7 {[%clk 0:00:15]}  Rxb3 {[%clk 0:01:29]} 32. Ne8+ {[%clk 0:00:15]}  Kf8 {[%clk 0:01:23]} 33. Ra8 {[%clk 0:00:15]}  Ke7 {[%clk 0:01:21]} 34. Bxh7 {[%clk 0:00:13]}  b5 {[%clk 0:01:13]} 35. Ng7 {[%clk 0:00:11]}  a4 {[%clk 0:01:11]} 36. h4 {[%clk 0:00:11]}  gxh4 {[%clk 0:01:11]} 37. gxh4 {[%clk 0:00:12]}  Nf3+ {[%clk 0:01:10]} 38. Kg2 {[%clk 0:00:12]}  Nxh4+ {[%clk 0:01:10]} 39. Kg3 {[%clk 0:00:13]}  Ng6 {[%clk 0:01:08]} 40. Re8+ {[%clk 0:00:11]}  Kf6 {[%clk 0:01:01]} 41. Nh5+ {[%clk 0:00:11]}  Kg5 {[%clk 0:01:02]} 42. Ng7 {[%clk 0:00:11]}  Kh6 {[%clk 0:01:01]} 43. Bg8 {[%clk 0:00:11]}  Kxg7 {[%clk 0:01:01]} 0-1


[Site "https://www.chess.com"]

[Event "Titled Tuesday Blitz October 25 Early 2022"]
[White "Milikow, Yoav"]
[Black "Svane, Rasmus"]
[WhiteFideId "2822237"]
[BlackFideId "4657101"]
[WhiteElo "2341"]
[BlackElo "2674"]
[Result "1-0"]
[Round "08"]
[TimeControl "180+1"]
[Date "2022.10.25"]
[WhiteClock "0:00:22"]
[BlackClock "0:00:02"]

1. c4 {[%clk 0:03:00]}  Nf6 {[%clk 0:02:58]} 2. d4 {[%clk 0:03:00]}  e6 {[%clk 0:02:57]} 3. Nf3 {[%clk 0:02:59]}  d5 {[%clk 0:02:57]} 4. Nc3 {[%clk 0:02:59]}  a6 {[%clk 0:02:58]} 5. cxd5 {[%clk 0:02:55]}  exd5 {[%clk 0:02:58]} 6. Bg5 {[%clk 0:02:53]}  Be6 {[%clk 0:02:59]} 7. e3 {[%clk 0:02:54]}  Nbd7 {[%clk 0:02:58]} 8. Bd3 {[%clk 0:02:53]}  Bd6 {[%clk 0:02:59]} 9. O-O {[%clk 0:02:53]}  c6 {[%clk 0:02:59]} 10. Bf4 {[%clk 0:02:50]}  Qc7 {[%clk 0:02:59]} 11. Qd2 {[%clk 0:02:48]}  O-O {[%clk 0:02:58]} 12. h3 {[%clk 0:02:45]}  g6 {[%clk 0:02:57]} 13. Rac1 {[%clk 0:02:39]}  Nh5 {[%clk 0:02:57]} 14. Bh6 {[%clk 0:02:33]}  Rfe8 {[%clk 0:02:57]} 15. Ng5 {[%clk 0:02:27]}  Qd8 {[%clk 0:02:45]} 16. Be2 {[%clk 0:02:21]}  Ng7 {[%clk 0:02:44]} 17. Nxe6 {[%clk 0:02:15]}  Nxe6 {[%clk 0:02:41]} 18. e4 {[%clk 0:02:09]}  dxe4 {[%clk 0:01:33]} 19. Nxe4 {[%clk 0:02:10]}  Nf6 {[%clk 0:01:31]} 20. Nxd6 {[%clk 0:01:53]}  Qxd6 {[%clk 0:01:32]} 21. Rfd1 {[%clk 0:01:52]}  Rad8 {[%clk 0:01:31]} 22. Bc4 {[%clk 0:01:41]}  Nxd4 {[%clk 0:01:19]} 23. Qa5 {[%clk 0:01:12]}  b5 {[%clk 0:01:12]} 24. Bf1 {[%clk 0:01:07]}  c5 {[%clk 0:01:12]} 25. Be3 {[%clk 0:01:02]}  Nd5 {[%clk 0:00:11]} 26. Bxd4 {[%clk 0:01:01]}  cxd4 {[%clk 0:00:11]} 27. Rxd4 {[%clk 0:01:01]}  Qb6 {[%clk 0:00:09]} 28. Qxb6 {[%clk 0:00:48]}  Nxb6 {[%clk 0:00:10]} 29. Rxd8 {[%clk 0:00:48]}  Rxd8 {[%clk 0:00:11]} 30. Rc6 {[%clk 0:00:49]}  Na4 {[%clk 0:00:11]} 31. b3 {[%clk 0:00:46]}  Nb2 {[%clk 0:00:11]} 32. Rxa6 {[%clk 0:00:43]}  b4 {[%clk 0:00:12]} 33. Rb6 {[%clk 0:00:40]}  Rd4 {[%clk 0:00:12]} 34. Kh2 {[%clk 0:00:39]}  Nd1 {[%clk 0:00:12]} 35. Bc4 {[%clk 0:00:38]}  Rf4 {[%clk 0:00:07]} 36. f3 {[%clk 0:00:34]}  Ne3 {[%clk 0:00:07]} 37. Rxb4 {[%clk 0:00:33]}  Kg7 {[%clk 0:00:07]} 38. a4 {[%clk 0:00:31]}  Rd4 {[%clk 0:00:07]} 39. Rb7 {[%clk 0:00:26]}  Rd2 {[%clk 0:00:05]} 40. Rxf7+ {[%clk 0:00:25]}  Kh6 {[%clk 0:00:06]} 41. Re7 {[%clk 0:00:24]}  Nxg2 {[%clk 0:00:03]} 42. Re2 {[%clk 0:00:24]}  Rxe2 {[%clk 0:00:02]} 43. Bxe2 {[%clk 0:00:25]}  Nf4 {[%clk 0:00:03]} 44. a5 {[%clk 0:00:22]}  Nxe2 {[%clk 0:00:02]} 45. a6 {[%clk 0:00:23]}  Nd4 {[%clk 0:00:02]} 46. a7 {[%clk 0:00:23]}  Nxf3+ {[%clk 0:00:01]} 47. Kh1 {[%clk 0:00:23]}  Nh4 {[%clk 0:00:01]} 48. a8=Q {[%clk 0:00:24]}  Kh5 {[%clk 0:00:01]} 49. Qa1 {[%clk 0:00:24]}  h6 {[%clk 0:00:02]} 50. Qg1 {[%clk 0:00:24]}  g5 {[%clk 0:00:02]} 51. Qb1 {[%clk 0:00:24]}  g4 {[%clk 0:00:01]} 52. Qd1 {[%clk 0:00:23]}  Nf3 {[%clk 0:00:01]} 53. Qd7 {[%clk 0:00:22]}  Kh4 {[%clk 0:00:02]} 54. Qxg4# {[%clk 0:00:22]} 1-0


[Site "https://www.chess.com"]

[Event "Titled Tuesday Blitz October 25 Early 2022"]
[White "Postny, Evgeny"]
[Black "Kamsky, Gata"]
[WhiteFideId "2804344"]
[BlackFideId "2000024"]
[WhiteElo "2473"]
[BlackElo "2666"]
[Result "1-0"]
[Round "08"]
[TimeControl "180+1"]
[Date "2022.10.25"]
[WhiteClock "0:01:05"]
[BlackClock "0:00:44"]

1. e4 {[%clk 0:03:00]}  c5 {[%clk 0:02:58]} 2. Nf3 {[%clk 0:03:00]}  e6 {[%clk 0:02:59]} 3. d4 {[%clk 0:03:01]}  cxd4 {[%clk 0:02:59]} 4. Nxd4 {[%clk 0:03:01]}  a6 {[%clk 0:02:59]} 5. Bd3 {[%clk 0:03:01]}  Bc5 {[%clk 0:02:56]} 6. Nb3 {[%clk 0:03:01]}  Ba7 {[%clk 0:02:56]} 7. Qe2 {[%clk 0:02:58]}  d6 {[%clk 0:02:51]} 8. Be3 {[%clk 0:02:58]}  e5 {[%clk 0:02:49]} 9. Bxa7 {[%clk 0:02:56]}  Rxa7 {[%clk 0:02:49]} 10. c4 {[%clk 0:02:52]}  Nf6 {[%clk 0:02:38]} 11. Nc3 {[%clk 0:02:52]}  Be6 {[%clk 0:02:37]} 12. O-O {[%clk 0:02:48]}  O-O {[%clk 0:02:30]} 13. Rfd1 {[%clk 0:02:48]}  Nc6 {[%clk 0:02:19]} 14. Qe3 {[%clk 0:02:43]}  a5 {[%clk 0:02:17]} 15. Nb5 {[%clk 0:02:39]}  Ra6 {[%clk 0:02:04]} 16. Bf1 {[%clk 0:02:37]}  Nb4 {[%clk 0:01:39]} 17. Rd2 {[%clk 0:02:15]}  a4 {[%clk 0:01:34]} 18. Nc5 {[%clk 0:02:13]}  Ng4 {[%clk 0:01:16]} 19. Qg3 {[%clk 0:01:21]}  dxc5 {[%clk 0:00:48]} 20. Rxd8 {[%clk 0:01:20]}  Rxd8 {[%clk 0:00:48]} 21. Nc7 {[%clk 0:01:05]}  Rc6 {[%clk 0:00:44]} 22. Nxe6 {[%clk 0:01:05]} 1-0


[Site "https://www.chess.com"]

[Event "Titled Tuesday Blitz October 25 Early 2022"]
[White "Rohith Krishna S"]
[Black "Dushyant Sharma"]
[WhiteFideId "46617051"]
[BlackFideId "25065130"]
[WhiteElo "2270"]
[BlackElo "2270"]
[Result "1-0"]
[Round "08"]
[TimeControl "180+1"]
[Date "2022.10.25"]
[WhiteClock "0:01:43"]
[BlackClock "0:00:09"]

1. Nf3 {[%clk 0:02:46]}  Nf6 {[%clk 0:02:59]} 2. g3 {[%clk 0:02:46]}  e6 {[%clk 0:03:00]} 3. Bg2 {[%clk 0:02:47]}  d5 {[%clk 0:03:00]} 4. O-O {[%clk 0:02:47]}  Be7 {[%clk 0:03:01]} 5. c4 {[%clk 0:02:46]}  O-O {[%clk 0:03:02]} 6. d4 {[%clk 0:02:45]}  dxc4 {[%clk 0:03:02]} 7. Ne5 {[%clk 0:02:45]}  c5 {[%clk 0:03:02]} 8. dxc5 {[%clk 0:02:45]}  Bxc5 {[%clk 0:03:03]} 9. Qc2 {[%clk 0:02:43]}  Qc7 {[%clk 0:03:01]} 10. Nxc4 {[%clk 0:02:41]}  Nc6 {[%clk 0:03:01]} 11. Nc3 {[%clk 0:02:38]}  e5 {[%clk 0:02:58]} 12. Bg5 {[%clk 0:02:35]}  Be7 {[%clk 0:02:55]} 13. Bxf6 {[%clk 0:02:33]}  Bxf6 {[%clk 0:02:55]} 14. Nd5 {[%clk 0:02:33]}  Qd8 {[%clk 0:02:53]} 15. Rfd1 {[%clk 0:02:31]}  Be6 {[%clk 0:02:53]} 16. e3 {[%clk 0:02:26]}  Bxd5 {[%clk 0:02:42]} 17. Bxd5 {[%clk 0:02:22]}  Qe7 {[%clk 0:02:26]} 18. a3 {[%clk 0:02:17]}  Rac8 {[%clk 0:02:21]} 19. Qe4 {[%clk 0:02:14]}  g6 {[%clk 0:02:20]} 20. h4 {[%clk 0:02:14]}  Kh8 {[%clk 0:01:52]} 21. h5 {[%clk 0:02:13]}  Bg7 {[%clk 0:01:53]} 22. hxg6 {[%clk 0:02:11]}  f5 {[%clk 0:01:54]} 23. Qh1 {[%clk 0:02:10]}  h6 {[%clk 0:01:49]} 24. Qh5 {[%clk 0:02:10]}  b5 {[%clk 0:01:39]} 25. Nd2 {[%clk 0:02:04]}  e4 {[%clk 0:01:04]} 26. Rac1 {[%clk 0:02:01]}  Ne5 {[%clk 0:01:03]} 27. Rxc8 {[%clk 0:02:00]}  Rxc8 {[%clk 0:01:04]} 28. Qxf5 {[%clk 0:02:00]}  Rd8 {[%clk 0:00:43]} 29. Nxe4 {[%clk 0:01:59]}  b4 {[%clk 0:00:37]} 30. axb4 {[%clk 0:01:52]}  Qxb4 {[%clk 0:00:38]} 31. Ng5 {[%clk 0:01:52]}  Qa4 {[%clk 0:00:22]} 32. b3 {[%clk 0:01:51]}  Qb5 {[%clk 0:00:13]} 33. Nf7+ {[%clk 0:01:48]}  Nxf7 {[%clk 0:00:14]} 34. gxf7 {[%clk 0:01:49]}  Qb4 {[%clk 0:00:12]} 35. Be4 {[%clk 0:01:43]}  Rxd1+ {[%clk 0:00:11]} 36. Kh2 {[%clk 0:01:44]}  Qxe4 {[%clk 0:00:09]} 37. Qxe4 {[%clk 0:01:44]}  Rd8 {[%clk 0:00:09]} 38. Qe8+ {[%clk 0:01:43]} 1-0


[Site "https://www.chess.com"]

[Event "Titled Tuesday Blitz October 25 Early 2022"]
[White "Rorrer, Grayson"]
[Black "Bortnyk, Olexandr"]
[WhiteFideId "30944996"]
[BlackFideId "14120828"]
[WhiteElo "2130"]
[BlackElo "2723"]
[Result "0-1"]
[Round "08"]
[TimeControl "180+1"]
[Date "2022.10.25"]
[WhiteClock "0:00:02"]
[BlackClock "0:00:46"]

1. e4 {[%clk 0:03:00]}  Nf6 {[%clk 0:02:59]} 2. e5 {[%clk 0:03:00]}  Nd5 {[%clk 0:03:00]} 3. d4 {[%clk 0:03:00]}  d6 {[%clk 0:03:00]} 4. Nf3 {[%clk 0:03:01]}  dxe5 {[%clk 0:03:01]} 5. Nxe5 {[%clk 0:03:02]}  c6 {[%clk 0:03:01]} 6. Be2 {[%clk 0:03:02]}  Bf5 {[%clk 0:03:02]} 7. O-O {[%clk 0:03:01]}  Nd7 {[%clk 0:03:02]} 8. Nf3 {[%clk 0:02:59]}  e6 {[%clk 0:03:02]} 9. a3 {[%clk 0:02:58]}  Bd6 {[%clk 0:03:02]} 10. c4 {[%clk 0:02:58]}  N5f6 {[%clk 0:03:02]} 11. Nc3 {[%clk 0:02:59]}  O-O {[%clk 0:03:02]} 12. h3 {[%clk 0:02:58]}  Ne4 {[%clk 0:03:02]} 13. Nxe4 {[%clk 0:02:51]}  Bxe4 {[%clk 0:03:03]} 14. Be3 {[%clk 0:02:52]}  h6 {[%clk 0:03:01]} 15. Qb3 {[%clk 0:02:48]}  Qc7 {[%clk 0:02:55]} 16. Rad1 {[%clk 0:02:41]}  Rfd8 {[%clk 0:02:55]} 17. Qc3 {[%clk 0:02:31]}  b6 {[%clk 0:02:48]} 18. b4 {[%clk 0:02:21]}  c5 {[%clk 0:02:48]} 19. dxc5 {[%clk 0:01:52]}  bxc5 {[%clk 0:02:48]} 20. b5 {[%clk 0:01:53]}  Nb6 {[%clk 0:02:35]} 21. Rd2 {[%clk 0:01:47]}  Rd7 {[%clk 0:02:32]} 22. Rfd1 {[%clk 0:01:45]}  Rad8 {[%clk 0:02:33]} 23. Kf1 {[%clk 0:01:18]}  f5 {[%clk 0:02:31]} 24. g3 {[%clk 0:01:08]}  Rf8 {[%clk 0:02:16]} 25. Bf4 {[%clk 0:00:44]}  Bxf4 {[%clk 0:02:12]} 26. Rxd7 {[%clk 0:00:44]}  Nxd7 {[%clk 0:02:12]} 27. gxf4 {[%clk 0:00:45]}  Bxf3 {[%clk 0:02:00]} 28. Qxf3 {[%clk 0:00:36]}  Nb6 {[%clk 0:01:56]} 29. Qe3 {[%clk 0:00:36]}  Qe7 {[%clk 0:01:53]} 30. Qe5 {[%clk 0:00:31]}  Re8 {[%clk 0:01:51]} 31. a4 {[%clk 0:00:18]}  Nxa4 {[%clk 0:01:49]} 32. Bh5 {[%clk 0:00:18]}  Rf8 {[%clk 0:01:45]} 33. Rd6 {[%clk 0:00:18]}  Rf6 {[%clk 0:01:39]} 34. Bd1 {[%clk 0:00:16]}  Nb6 {[%clk 0:01:39]} 35. Be2 {[%clk 0:00:12]}  Nd7 {[%clk 0:01:38]} 36. Rxd7 {[%clk 0:00:08]}  Qxd7 {[%clk 0:01:39]} 37. Qxc5 {[%clk 0:00:08]}  Rf8 {[%clk 0:01:30]} 38. Bf3 {[%clk 0:00:05]}  Rd8 {[%clk 0:01:27]} 39. Kg2 {[%clk 0:00:05]}  Kh7 {[%clk 0:01:22]} 40. Qe5 {[%clk 0:00:03]}  Qd4 {[%clk 0:01:19]} 41. c5 {[%clk 0:00:02]}  Qxe5 {[%clk 0:01:13]} 42. fxe5 {[%clk 0:00:03]}  Rb8 {[%clk 0:01:13]} 43. Bc6 {[%clk 0:00:01]}  g5 {[%clk 0:01:12]} 44. Bd7 {[%clk 0:00:01]}  a5 {[%clk 0:00:57]} 45. c6 {[%clk 0:00:02]}  Rxb5 {[%clk 0:00:57]} 46. c7 {[%clk 0:00:02]}  Rc5 {[%clk 0:00:58]} 47. c8=Q {[%clk 0:00:03]}  Rxc8 {[%clk 0:00:59]} 48. Bxc8 {[%clk 0:00:03]}  a4 {[%clk 0:00:59]} 49. Bxe6 {[%clk 0:00:04]}  a3 {[%clk 0:01:00]} 50. Ba2 {[%clk 0:00:04]}  Kg6 {[%clk 0:01:00]} 51. e6 {[%clk 0:00:05]}  Kf6 {[%clk 0:01:01]} 52. Kg3 {[%clk 0:00:06]}  h5 {[%clk 0:01:00]} 53. f4 {[%clk 0:00:04]}  g4 {[%clk 0:00:59]} 54. hxg4 {[%clk 0:00:04]}  hxg4 {[%clk 0:00:56]} 55. Bd5 {[%clk 0:00:04]}  Ke7 {[%clk 0:00:42]} 56. Kf2 {[%clk 0:00:04]}  Kd8 {[%clk 0:00:42]} 57. Ke3 {[%clk 0:00:03]}  Kc8 {[%clk 0:00:41]} 58. Ba2 {[%clk 0:00:01]}  Kc7 {[%clk 0:00:41]} 59. Bd5 {[%clk 0:00:02]}  Kd6 {[%clk 0:00:41]} 60. Bb3 {[%clk 0:00:03]}  Kc6 {[%clk 0:00:42]} 61. Ba2 {[%clk 0:00:03]}  Kc7 {[%clk 0:00:42]} 62. Bb3 {[%clk 0:00:02]}  Kd8 {[%clk 0:00:43]} 63. Bc4 {[%clk 0:00:03]}  Ke8 {[%clk 0:00:44]} 64. Bd5 {[%clk 0:00:03]}  Kf8 {[%clk 0:00:45]} 65. Kd2 {[%clk 0:00:02]}  Ke7 {[%clk 0:00:44]} 66. Kc3 {[%clk 0:00:02]}  Kd6 {[%clk 0:00:43]} 67. Bg2 {[%clk 0:00:02]}  Kxe6 {[%clk 0:00:43]} 68. Kb3 {[%clk 0:00:02]}  Kd6 {[%clk 0:00:44]} 69. Kxa3 {[%clk 0:00:03]}  Kc5 {[%clk 0:00:45]} 70. Bb7 {[%clk 0:00:02]}  Kd4 {[%clk 0:00:46]} 71. Bc8 {[%clk 0:00:02]}  g3 {[%clk 0:00:46]} 72. Bb7 {[%clk 0:00:03]}  Ke3 {[%clk 0:00:47]} 73. Kb3 {[%clk 0:00:03]}  Kxf4 {[%clk 0:00:47]} 74. Kc3 {[%clk 0:00:03]}  Ke3 {[%clk 0:00:47]} 75. Kc2 {[%clk 0:00:02]}  f4 {[%clk 0:00:47]} 76. Kd1 {[%clk 0:00:02]}  f3 {[%clk 0:00:46]} 0-1


[Site "https://www.chess.com"]